lending/lending_fUSD_20250429
["ID","MTS","AMOUNT","RATE_DAILY","PERIOD"]
[359348496,1745947848498,-1097.95,0.0002767,2]
[359348497,1745947848507,-502.47253425,0.0002767,2]
[359348498,1745947848517,-470.0,0.0002767,2]
[359348499,1745947848527,-470.0,0.0002767,2]
[359348500,1745947848537,-470.0,0.0002767,2]
[359348501,1745947848547,-591.20138801,0.0002767,2]
[359348502,1745947848557,-508.52375054,0.0002767,2]
[359348503,1745947848567,-795.69,0.0002767,2]
[359348504,1745947848577,-470.0,0.0002767,2]
[359348505,1745947848587,-2406.8,0.0002767,2]
[359348506,1745947848597,-470.0,0.0002767,2]
[359348507,1745947848610,-470.0,0.0002767,2]
[359348508,1745947848619,-470.0,0.0002767,2]
[359348509,1745947848629,-470.0,0.0002767,2]
[359348510,1745947848638,-470.0,0.0002767,2]
[359348511,1745947848649,-502.18435207,0.0002767,2]
[359348512,1745947848658,-932.55,0.0002767,2]
[359348513,1745947848667,-361.25458552,0.0002767,2]
[359348514,1745947848677,-470.0,0.0002767,2]
[359348515,1745947848687,-470.0,0.0002767,2]
[359348516,1745947848696,-508.25,0.0002767,2]
[359348517,1745947848705,-470.0,0.0002767,2]
[359348518,1745947848714,-470.0,0.0002767,2]
[359348519,1745947848723,-934.89,0.0002767,2]
[359348520,1745947848734,-470.0,0.0002767,2]
[359348521,1745947848743,-500.0,0.0002767,2]
[359348522,1745947848753,-470.0,0.0002767,2]
[359348523,1745947848762,-470.0,0.0002767,2]
[359348524,1745947848772,-500.0,0.0002767,2]
[359348525,1745947848782,-470.0,0.0002767,2]
[359348526,1745947848792,-500.0,0.0002767,2]
[359348527,1745947848801,-470.0,0.0002767,2]
[359348528,1745947848811,-573.07223589,0.0002767,2]
[359348529,1745947848820,-2409.88,0.0002767,2]
[359348530,1745947848829,-500.0,0.0002767,2]
[359348531,1745947848839,-470.0,0.0002767,2]
[359348532,1745947848848,-3268.4,0.0002767,2]
[359348533,1745947848858,-500.0,0.0002767,2]
[359348534,1745947848867,-647.27,0.0002767,2]
[359348535,1745947848876,-470.0,0.0002767,2]
[359348536,1745947848886,-470.0,0.0002767,2]
[359348537,1745947848895,-470.0,0.0002767,2]
[359348538,1745947848904,-470.0,0.0002767,2]
[359348539,1745947848913,-6922.7,0.0002767,2]
[359348540,1745947848922,-642.69,0.0002767,2]
[359348541,1745947848931,-500.0,0.0002767,2]
[359348542,1745947848941,-500.0,0.0002767,2]
[359348543,1745947848950,-470.0,0.0002767,2]
[359348544,1745947848959,-500.0,0.0002767,2]
[359348545,1745947848968,-916.21,0.0002767,2]
[359348546,1745947848977,-500.0,0.0002767,2]
[359348547,1745947848986,-470.0,0.0002767,2]
[359348548,1745947848996,-500.0,0.0002767,2]
[359348549,1745947849005,-500.0,0.0002767,2]
[359348550,1745947849015,-500.0,0.0002767,2]
[359348551,1745947849024,-470.0,0.0002767,2]
[359348552,1745947849033,-470.0,0.0002767,2]
[359348553,1745947849043,-470.0,0.0002767,2]
[359348554,1745947849052,-470.0,0.0002767,2]
[359348555,1745947849062,-470.0,0.0002767,2]
[359348556,1745947849071,-470.0,0.0002767,2]
[359348557,1745947849080,-470.0,0.0002767,2]
[359348558,1745947849090,-500.0,0.0002767,2]
[359348559,1745947849100,-470.0,0.0002767,2]
[359348560,1745947849109,-500.0,0.0002767,2]
[359348561,1745947849119,-500.0,0.0002767,2]
[359348562,1745947849132,-518.17,0.0002767,2]
[359348563,1745947849146,-215.01415254,0.0002767,2]
[359348564,1745947849162,-470.0,0.0002767,2]
[359348565,1745947849174,-500.0,0.0002767,2]
[359348566,1745947849187,-470.0,0.0002767,2]
[359348567,1745947849202,-500.0,0.0002767,2]
[359348568,1745947849215,-500.0,0.0002767,2]
[359348569,1745947849230,-7070.34,0.0002767,2]
[359348570,1745947849244,-500.0,0.0002767,2]
[359348571,1745947849257,-470.0,0.0002767,2]
[359348572,1745947849269,-470.0,0.0002767,2]
[359348573,1745947849281,-470.0,0.0002767,2]
[359348574,1745947849294,-66833.61,0.0002767,2]
[359348575,1745947849309,-500.0,0.0002767,2]
[359348576,1745947849323,-717.85,0.0002767,2]
[359348577,1745947849337,-470.0,0.0002767,2]
[359348578,1745947849352,-470.0,0.0002767,2]
[359348579,1745947849366,-500.0,0.0002767,2]
[359348580,1745947849380,-470.0,0.0002767,2]
[359348581,1745947849395,-1310.18,0.0002767,2]
[359348582,1745947849409,-470.0,0.0002767,2]
[359348583,1745947849423,-629.86,0.0002767,2]
[359348584,1745947849437,-8522.3,0.0002767,2]
[359348585,1745947849451,-470.0,0.0002767,2]
[359348586,1745947849465,-391.92779095,0.0002767,2]
[359348587,1745947849478,-358.0,0.0002767,18]
[359348588,1745947849491,-3956.45,0.0002767,2]
[359348589,1745947849503,-470.0,0.0002767,2]
[359348590,1745947849513,-470.0,0.0002767,2]
[359348591,1745947849525,-470.0,0.0002767,2]
[359348592,1745947849540,-2080.1,0.0002767,2]
[359348593,1745947849554,-611.18,0.0002767,2]
[359348594,1745947849564,-547.68462235,0.00027671,2]
[359348595,1745947849575,-546.00792925,0.00027671,2]
[359348596,1745947849588,-530.0,0.00027671,2]
[359348597,1745947849605,-556.13950949,0.00027671,2]
[359348598,1745947849618,-392.66888726,0.00027671,2]
[359348599,1745947849629,-327.93539322,0.00027671,2]
[359348600,1745947849640,-393.62115232,0.00027671,2]
[359348601,1745947849655,-430.01230737,0.00027671,2]
[359348602,1745947849668,-470.0,0.00027671,2]
[359348603,1745947849679,-533.68924316,0.00027671,2]
[359348604,1745947849691,-470.0,0.00027671,2]
[359348605,1745947849704,-470.0,0.00027671,2]
[359348606,1745947849715,-552.03563394,0.00027671,2]
[359348607,1745947849728,-157.31216006,0.00027671,2]
[359348608,1745947849739,-470.0,0.00027671,2]
[359348609,1745947849751,-232.96644181,0.00027671,2]
[359348610,1745947849763,-470.0,0.00027671,2]
[359348611,1745947849775,-470.0,0.00027671,2]
[359348612,1745947849787,-470.0,0.00027671,2]
[359348613,1745947849802,-537.18,0.00027671,2]
[359348614,1745947849814,-1034.02,0.00027671,2]
[359348615,1745947849826,-470.0,0.00027671,2]
[359348616,1745947849838,-470.0,0.00027671,2]
[359348617,1745947849851,-470.0,0.00027671,2]
[359348618,1745947849863,-470.0,0.00027671,2]
[359348619,1745947849875,-470.0,0.00027671,2]
[359348620,1745947849887,-470.0,0.00027671,2]
[359348621,1745947849898,-488.90685722,0.00027671,2]
[359348622,1745947849910,-470.0,0.00027671,2]
[359348623,1745947849922,-470.0,0.00027671,2]
[359348624,1745947849935,-470.0,0.00027671,2]
[359348625,1745947849947,-470.0,0.00027671,2]
[359348626,1745947849959,-470.0,0.00027671,2]
[359348627,1745947849971,-470.0,0.00027671,2]
[359348628,1745947849983,-470.0,0.00027671,2]
[359348629,1745947849995,-470.0,0.00027671,2]
[359348630,1745947850007,-470.0,0.00027671,2]
[359348631,1745947850022,-517.81,0.00027671,2]
[359348632,1745947850037,-470.0,0.00027671,2]
[359348633,1745947850050,-470.0,0.00027671,2]
[359348634,1745947850063,-1109.71,0.00027671,2]
[359348635,1745947850075,-470.0,0.00027671,2]
[359348636,1745947850086,-470.0,0.00027671,2]
[359348637,1745947850098,-470.0,0.00027671,2]
[359348638,1745947850111,-470.0,0.00027671,2]
[359348639,1745947850123,-470.0,0.00027671,2]
[359348640,1745947850135,-470.0,0.00027671,2]
[359348641,1745947850147,-332.21164794,0.00027671,2]
[359348642,1745947850159,-470.0,0.00027671,2]
[359348643,1745947850171,-530.0,0.00027671,2]
[359348644,1745947850183,-470.0,0.00027671,2]
[359348645,1745947850195,-470.0,0.00027671,2]
[359348646,1745947850207,-442.54346873,0.00027671,2]
[359348647,1745947850220,-470.0,0.00027671,2]
[359348648,1745947850233,-530.0,0.00027671,2]
[359348649,1745947850245,-470.0,0.00027671,2]
[359348650,1745947850257,-470.0,0.00027671,2]
[359348651,1745947850269,-636.53,0.00027671,2]
[359348652,1745947850281,-523.07,0.00027671,2]
[359348653,1745947850293,-470.0,0.00027671,2]
[359348654,1745947850305,-470.0,0.00027671,2]
[359348655,1745947850317,-470.0,0.00027671,2]
[359348656,1745947850329,-470.0,0.00027671,2]
[359348657,1745947850340,-530.0,0.00027671,2]
[359348658,1745947850353,-470.0,0.00027671,2]
[359348659,1745947850365,-470.0,0.00027671,2]
[359348660,1745947850377,-470.0,0.00027671,2]
[359348661,1745947850389,-470.0,0.00027671,2]
[359348662,1745947850401,-470.0,0.00027671,2]
[359348663,1745947850413,-470.0,0.00027671,2]
[359348664,1745947850425,-942.24,0.00027671,2]
[359348665,1745947850437,-470.0,0.00027671,2]
[359348666,1745947850448,-470.0,0.00027671,2]
[359348667,1745947850460,-470.0,0.00027671,2]
[359348668,1745947850472,-538.91278633,0.00027671,2]
[359348669,1745947850484,-500.0,0.00027671,2]
[359348670,1745947850496,-960.77,0.00027671,2]
[359348671,1745947850507,-470.0,0.00027671,2]
[359348672,1745947850519,-470.0,0.00027671,2]
[359348673,1745947850531,-348.98896224,0.00027671,2]
[359348674,1745947850543,-470.0,0.00027671,2]
[359348675,1745947850555,-500.0,0.00027671,2]
[359348676,1745947850566,-470.0,0.00027671,2]
[359348677,1745947850578,-500.0,0.00027671,2]
[359348678,1745947850590,-470.0,0.00027671,2]
[359348679,1745947850602,-470.0,0.00027671,2]
[359348680,1745947850617,-546.30059504,0.00027671,2]
[359348681,1745947850628,-658.13,0.00027671,2]
[359348682,1745947850640,-2592.39,0.00027671,2]
[359348683,1745947850655,-470.0,0.00027671,2]
[359348684,1745947850667,-547.31057863,0.00027671,2]
[359348685,1745947850682,-1574.79,0.00027671,2]
[359348686,1745947850696,-470.0,0.00027671,2]
[359348687,1745947850707,-470.0,0.00027671,2]
[359348688,1745947850718,-470.0,0.00027671,2]
[359348689,1745947850733,-470.0,0.00027671,2]
[359348690,1745947850745,-470.0,0.00027671,2]
[359348691,1745947850757,-470.0,0.00027671,2]
[359348692,1745947850769,-2775.44,0.00027671,2]
[359348693,1745947850780,-531.42826194,0.00027671,2]
[359348694,1745947850791,-581.1,0.00027671,2]
[359348695,1745947850803,-470.0,0.00027671,2]
[359348696,1745947850814,-470.0,0.00027671,2]
[359348697,1745947850825,-470.0,0.00027671,2]
[359348698,1745947850837,-470.0,0.00027671,2]
[359348699,1745947850849,-470.0,0.00027671,2]
[359348700,1745947850860,-538.91170912,0.00027671,2]
[359348701,1745947850871,-500.0,0.00027671,2]
[359348702,1745947850882,-470.4,0.00027671,2]
[359348703,1745947850894,-470.0,0.00027671,2]
[359348704,1745947850907,-470.0,0.00027671,2]
[359348705,1745947850920,-487.16,0.00027671,2]
[359348706,1745947850935,-6704.709698,0.00027671,2]
[359348707,1745947850946,-470.0,0.00027671,2]
[359348708,1745947850957,-470.0,0.00027671,2]
[359348709,1745947850967,-470.0,0.00027671,2]
[359348710,1745947850977,-470.0,0.00027671,2]
[359348711,1745947850986,-470.0,0.00027671,2]
[359348712,1745947850996,-470.0,0.00027671,2]
[359348713,1745947851005,-470.0,0.00027671,2]
[359348714,1745947851015,-741.751675,0.00027671,2]
[359348715,1745947851025,-470.0,0.00027671,2]
[359348716,1745947851035,-470.0,0.00027671,2]
[359348717,1745947851046,-500.42,0.00027671,2]
[359348718,1745947851056,-500.0,0.00027671,2]
[359348719,1745947851066,-499.51,0.00027671,2]
[359348720,1745947851075,-492.205473,0.00027671,2]
[359348721,1745947851086,-470.0,0.00027671,2]
[359348722,1745947851096,-152.21309696,0.00027671,2]
[359348723,1745947851106,-526.98,0.00027671,2]
[359348724,1745947851115,-588.92,0.00027671,2]
[359348725,1745947851124,-470.0,0.00027671,2]
[359348726,1745947851134,-470.0,0.00027671,2]
[359348727,1745947851144,-470.0,0.00027671,2]
[359348728,1745947851154,-470.0,0.00027671,2]
[359348729,1745947851465,-560.0,0.00027671,2]
[359348730,1745947851489,-619.94,0.00027671,2]
[359348731,1745947851509,-404.25003666,0.00027671,2]
[359348732,1745947851519,-500.0,0.00027671,2]
[359348733,1745947851528,-470.0,0.00027671,2]
[359348734,1745947851538,-583.59,0.00027671,2]
[359348735,1745947851549,-750.5,0.00027671,2]
[359348736,1745947851559,-470.0,0.00027671,2]
[359348737,1745947851569,-524.26,0.00027671,2]
[359348738,1745947851579,-500.0,0.00027671,2]
[359348739,1745947851590,-697.9,0.00027671,2]
[359348740,1745947851599,-470.0,0.00027671,2]
[359348741,1745947851612,-603.25,0.00027671,2]
[359348742,1745947851622,-587.33,0.00027671,2]
[359348743,1745947851632,-470.0,0.00027671,2]
[359348744,1745947851642,-560.0,0.00027671,2]
[359348745,1745947851654,-500.0,0.00027671,2]
[359348746,1745947851665,-470.0,0.00027671,2]
[359348747,1745947851674,-575.62084694,0.00027671,2]
[359348748,1745947851684,-1199.7,0.00027671,2]
[359348749,1745947851694,-470.0,0.00027671,2]
[359348750,1745947851703,-577.07869505,0.00027671,2]
[359348751,1745947851714,-470.0,0.00027671,2]
[359348752,1745947851723,-592.04,0.00027671,2]
[359348753,1745947851733,-470.0,0.00027671,2]
[359348754,1745947851743,-555.67,0.00027671,2]
[359348755,1745947851753,-388.41,0.00027671,2]
[359348756,1745947851762,-470.0,0.00027671,2]
[359348757,1745947851771,-500.0,0.00027671,2]
[359348758,1745947851779,-596.34,0.00027671,2]
[359348759,1745947851788,-470.0,0.00027671,2]
[359348760,1745947851797,-470.0,0.00027671,2]
[359348761,1745947851807,-522.57,0.00027671,2]
[359348762,1745947851816,-189.8119636,0.00027671,2]
[359348763,1745947851825,-470.0,0.00027671,2]
[359348764,1745947851834,-1756.82,0.00027671,2]
[359348765,1745947851843,-470.0,0.00027671,2]
[359348766,1745947851853,-470.0,0.00027671,2]
[359348767,1745947851863,-470.0,0.00027671,2]
[359348768,1745947851872,-470.0,0.00027671,2]
[359348769,1745947851883,-470.0,0.00027671,2]
[359348770,1745947851892,-470.0,0.00027671,2]
[359348771,1745947851902,-470.0,0.00027671,2]
[359348772,1745947851911,-470.0,0.00027671,2]
[359348773,1745947851923,-500.0,0.00027671,2]
[359348774,1745947851934,-470.0,0.00027671,2]
[359348775,1745947851944,-717.9,0.00027671,2]
[359348776,1745947851953,-662.53,0.00027671,2]
[359348777,1745947851964,-470.0,0.00027671,2]
[359348778,1745947851973,-470.0,0.00027671,2]
[359348779,1745947851982,-756.04,0.00027671,2]
[359348780,1745947851992,-470.0,0.00027671,2]
[359348781,1745947852002,-669.21,0.00027671,2]
[359348782,1745947852014,-470.0,0.00027671,2]
[359348783,1745947852023,-470.0,0.00027671,2]
[359348784,1745947852032,-470.0,0.00027671,2]
[359348785,1745947852042,-2233.17,0.00027671,2]
[359348786,1745947852051,-470.0,0.00027671,2]
[359348787,1745947852060,-1144.68,0.00027671,2]
[359348788,1745947852069,-560.0,0.00027671,2]
[359348789,1745947852079,-470.0,0.00027671,2]
[359348790,1745947852088,-470.0,0.00027671,2]
[359348791,1745947852097,-470.0,0.00027671,2]
[359348792,1745947852107,-470.0,0.00027671,2]
[359348793,1745947852116,-622.26,0.00027671,2]
[359348794,1745947852125,-470.0,0.00027671,2]
[359348795,1745947852134,-2044.04,0.00027671,2]
[359348796,1745947852143,-470.0,0.00027671,2]
[359348797,1745947852153,-759.73,0.00027671,2]
[359348798,1745947852162,-470.0,0.00027671,2]
[359348799,1745947852171,-470.0,0.00027671,2]
[359348800,1745947852181,-470.0,0.00027671,2]
[359348801,1745947852190,-1771.82,0.00027671,2]
[359348802,1745947852199,-1142.46,0.00027671,2]
[359348803,1745947852209,-2286.71,0.00027671,2]
[359348804,1745947852218,-526.05,0.00027671,2]
[359348805,1745947852228,-550.32,0.00027671,2]
[359348806,1745947852237,-470.0,0.00027671,2]
[359348807,1745947852246,-470.0,0.00027671,2]
[359348808,1745947852256,-470.0,0.00027671,2]
[359348809,1745947852265,-531.07,0.00027671,2]
[359348810,1745947852275,-470.0,0.00027671,2]
[359348811,1745947852284,-521.12,0.00027671,2]
[359348812,1745947852293,-500.0,0.00027671,2]
[359348813,1745947852302,-470.0,0.00027671,2]
[359348814,1745947852312,-470.0,0.00027671,2]
[359348815,1745947852321,-746.75,0.00027671,2]
[359348816,1745947852331,-470.0,0.00027671,2]
[359348817,1745947852340,-470.0,0.00027671,2]
[359348818,1745947852350,-470.0,0.00027671,2]
[359348819,1745947852359,-470.0,0.00027671,2]
[359348820,1745947852368,-649.36,0.00027671,2]
[359348821,1745947852378,-470.0,0.00027671,2]
[359348822,1745947852387,-470.0,0.00027671,2]
[359348823,1745947852397,-470.0,0.00027671,2]
[359348824,1745947852406,-470.0,0.00027671,2]
[359348825,1745947852416,-470.0,0.00027671,2]
[359348826,1745947852426,-801.87,0.00027671,2]
[359348827,1745947852435,-485.94,0.00027671,2]
[359348828,1745947852445,-470.0,0.00027671,2]
[359348829,1745947852454,-940.45,0.00027671,2]
[359348830,1745947852464,-1248.6,0.00027671,2]
[359348831,1745947852476,-1984.52,0.00027671,2]
[359348832,1745947852485,-470.0,0.00027671,2]
[359348833,1745947852495,-470.0,0.00027671,2]
[359348834,1745947852504,-470.0,0.00027671,2]
[359348835,1745947852514,-470.0,0.00027671,2]
[359348836,1745947852523,-470.0,0.00027671,2]
[359348837,1745947852534,-470.0,0.00027671,2]
[359348838,1745947852544,-2689.55,0.00027671,2]
[359348839,1745947852553,-394.74784,0.00027671,2]
[359348840,1745947852562,-470.0,0.00027671,2]
[359348841,1745947852571,-612.17,0.00027671,2]
[359348842,1745947852581,-1290.09,0.00027671,2]
[359348843,1745947852590,-470.0,0.00027671,2]
[359348844,1745947852600,-482.89,0.00027671,2]
[359348845,1745947852613,-639.76,0.00027671,2]
[359348846,1745947852624,-470.0,0.00027671,2]
[359348847,1745947852635,-1567.25,0.00027671,2]
[359348848,1745947852646,-502.53,0.00027671,2]
[359348849,1745947852658,-593.25,0.00027671,2]
[359348850,1745947852667,-470.0,0.00027671,2]
[359348851,1745947852677,-470.0,0.00027671,2]
[359348852,1745947852689,-470.0,0.00027671,2]
[359348853,1745947852701,-470.0,0.00027671,2]
[359348854,1745947852711,-572.07,0.00027671,2]
[359348855,1745947852722,-470.0,0.00027671,2]
[359348856,1745947852731,-610.7,0.00027671,2]
[359348857,1745947852740,-917.53,0.00027671,2]
[359348858,1745947852750,-470.0,0.00027671,2]
[359348859,1745947852760,-470.0,0.00027671,2]
[359348860,1745947852769,-470.0,0.00027671,2]
[359348861,1745947852778,-924.42,0.00027671,2]
[359348862,1745947852788,-470.0,0.00027671,2]
[359348863,1745947852797,-470.0,0.00027671,2]
[359348864,1745947852807,-530.86,0.00027671,2]
[359348865,1745947852816,-530.91,0.00027671,2]
[359348866,1745947852826,-599.42,0.00027671,2]
[359348867,1745947852836,-895.03,0.00027671,2]
[359348868,1745947852845,-745.63,0.00027671,2]
[359348869,1745947852854,-470.0,0.00027671,2]
[359348870,1745947852864,-454.88593874,0.00027671,2]
[359348871,1745947852873,-470.0,0.00027671,2]
[359348872,1745947852883,-542.1,0.00027671,2]
[359348873,1745947852893,-480.66,0.00027671,2]
[359348874,1745947852903,-470.0,0.00027671,2]
[359348875,1745947852913,-553.82,0.00027671,2]
[359348876,1745947852922,-525.51,0.00027671,2]
[359348877,1745947852932,-588.9,0.00027671,2]
[359348878,1745947852941,-618.01401139,0.00027671,2]
[359348879,1745947852951,-909.25,0.00027671,2]
[359348880,1745947852960,-500.0,0.00027671,2]
[359348881,1745947852969,-470.0,0.00027671,2]
[359348882,1745947852979,-470.0,0.00027671,2]
[359348883,1745947852988,-470.0,0.00027671,2]
[359348884,1745947852998,-519.53,0.00027671,2]
[359348885,1745947853008,-631.56,0.00027671,2]
[359348886,1745947853018,-470.0,0.00027671,2]
[359348887,1745947853028,-652.59,0.00027671,2]
[359348888,1745947853037,-576.67,0.00027671,2]
[359348889,1745947853047,-533.02,0.00027671,2]
[359348890,1745947853056,-470.0,0.00027671,2]
[359348891,1745947853066,-579.51,0.00027671,2]
[359348892,1745947853075,-633.49,0.00027671,2]
[359348893,1745947853084,-813.16,0.00027671,2]
[359348894,1745947853095,-500.13,0.00027671,2]
[359348895,1745947853104,-470.0,0.00027671,2]
[359348896,1745947853114,-470.00016259,0.00027671,2]
[359348897,1745947853124,-470.0,0.00027671,2]
[359348898,1745947853134,-734.3,0.00027671,2]
[359348899,1745947853143,-1226.23,0.00027671,2]
[359348900,1745947853153,-553.62,0.00027671,2]
[359348901,1745947853162,-470.0,0.00027671,2]
[359348902,1745947853172,-366.8128925,0.00027671,2]
[359348903,1745947853181,-483.13,0.00027671,2]
[359348904,1745947853191,-529.48,0.00027671,2]
[359348905,1745947853200,-649.88,0.00027671,2]
[359348906,1745947853209,-470.0,0.00027671,2]
[359348907,1745947853219,-470.0,0.00027671,2]
[359348908,1745947853228,-470.0,0.00027671,2]
[359348909,1745947853238,-13611.83,0.00027671,2]
[359348910,1745947853248,-560.0,0.00027671,2]
[359348911,1745947853258,-470.0,0.00027671,2]
[359348912,1745947853268,-470.0,0.00027671,2]
[359348913,1745947853277,-470.0,0.00027671,2]
[359348914,1745947853287,-470.0,0.00027671,2]
[359348915,1745947853296,-479.49,0.00027671,2]
[359348916,1745947853307,-500.0,0.00027671,2]
[359348917,1745947853316,-470.0,0.00027671,2]
[359348918,1745947853326,-662.13,0.00027671,2]
[359348919,1745947853335,-3803.28,0.00027671,2]
[359348920,1745947853346,-470.0,0.00027671,2]
[359348921,1745947853355,-470.0,0.00027671,2]
[359348922,1745947853365,-500.86,0.00027671,2]
[359348923,1745947853375,-470.0,0.00027671,2]
[359348924,1745947853384,-470.0,0.00027671,2]
[359348925,1745947853394,-470.0,0.00027671,2]
[359348926,1745947853404,-470.0,0.00027671,2]
[359348927,1745947853414,-510.17,0.00027671,2]
[359348928,1745947853424,-470.0,0.00027671,2]
[359348929,1745947853435,-470.0,0.00027671,2]
[359348930,1745947853448,-589.24,0.00027671,2]
[359348931,1745947853458,-500.0,0.00027673,5]
[359348932,1745947853467,-500.0,0.00027673,5]
[359348933,1745947853477,-500.0,0.00027673,5]
[359348934,1745947853487,-500.0,0.00027673,5]
[359348935,1745947853496,-500.0,0.00027673,5]
[359348936,1745947853506,-500.0,0.00027673,5]
[359348937,1745947853516,-500.0,0.00027673,5]
[359348938,1745947853525,-500.0,0.00027673,5]
[359348939,1745947853536,-153.81354159,0.00027673,5]
[359348940,1745947853545,-500.59242922,0.00027673,5]
[359348941,1745947853554,-500.0,0.00027673,5]
[359348942,1745947853564,-500.0,0.00027673,5]
[359348943,1745947853573,-536.76792142,0.00027673,5]
[359348944,1745947853583,-500.0,0.00027673,5]
[359348945,1745947853594,-500.40449918,0.00027673,5]
[359348946,1745947853603,-302.17365237,0.00027673,5]
[359348947,1745947853615,-900.0,0.000277,10]
[359348948,1745947853624,-549.0,0.00027778,2]
[359348949,1745947853634,-2067.0,0.00027778,2]
[359348950,1745947853643,-913.0,0.00027778,2]
[359348951,1745947853654,-580.0,0.00027778,2]
[359348952,1745947853663,-1448.0,0.00027778,2]
[359348953,1745947853673,-1137.0,0.00027778,2]
[359348954,1745947853682,-6743.0,0.00027778,2]
[359348955,1745947853692,-153.0,0.00027778,2]
[359348956,1745947853703,-3998.0,0.00027778,2]
[359348957,1745947853712,-1000.388,0.00027778,2]
[359348958,1745947853721,-877.0,0.00027778,2]
[359348959,1745947853730,-2402.45871785,0.00027797,7]
[359348960,1745947853740,-1400.0,0.000278,10]
[359348961,1745947853749,-290.02870298,0.00027845,2]
[359348962,1745947853759,-1381.52359737,0.00027845,2]
[359348963,1745947853768,-200.0,0.00027897,2]
[359348964,1745947853777,-1098.441,0.000279,18]
[359348965,1745947853786,-1800.0,0.000279,10]
[359348966,1745947853795,-3833.77144741,0.00027906,2]
[359348967,1745947853804,-1832.6347447,0.0002792,2]
[359348968,1745947853813,-152.074473,0.00027935,7]
[359348969,1745947853823,-151.0,0.00027935,7]
[359348970,1745947853833,-151.0,0.00027935,7]
[359348971,1745947853843,-151.0,0.00027935,7]
[359348972,1745947853852,-151.0,0.00027935,7]
[359348973,1745947853862,-151.0,0.00027935,7]
[359348974,1745947853872,-151.0,0.00027935,7]
[359348975,1745947853882,-151.0,0.00027935,7]
[359348976,1745947853892,-151.0,0.00027935,7]
[359348977,1745947853902,-151.352203,0.00027935,7]
[359348978,1745947853912,-300.0,0.00027944,10]
[359348979,1745947853921,-500.0,0.00027944,2]
[359348980,1745947853931,-500.0,0.00027944,2]
[359348981,1745947853940,-300.0,0.00027944,10]
[359348982,1745947853949,-500.0,0.00027944,2]
[359348983,1745947853959,-300.0,0.00027944,10]
[359348984,1745947853968,-500.0,0.00027944,2]
[359348985,1745947853978,-530.0,0.00027944,2]
[359348986,1745947853988,-470.0,0.00027944,2]
[359348987,1745947853998,-470.0,0.00027944,2]
[359348988,1745947854008,-470.0,0.00027944,2]
[359348989,1745947854018,-470.0,0.00027944,2]
[359348990,1745947854028,-250.0,0.00027944,2]
[359348991,1745947854037,-470.0,0.00027944,2]
[359348992,1745947854048,-471.63,0.00027944,2]
[359348993,1745947854058,-703.84,0.00027944,2]
[359348994,1745947854067,-470.0,0.00027944,2]
[359348995,1745947854076,-470.0,0.00027944,2]